bitfinex-derivatives/quotes_SOLF0:USTF0_20250124
["timestamp","ask_amount","ask_price","bid_price","bid_amount"]
[1737708348909,8.98125957,264.99,264.93,3.81029323]
[1737708349109,8.98125957,264.99,264.92,0.02866819]
[1737708349309,12.75515957,264.99,264.93,3.81032028]
[1737708349509,8.98125957,264.99,264.94,3.81032028]
[1737708349810,8.98125957,264.99,264.92,0.02866819]
[1737708350009,8.98125957,264.99,264.93,3.81247877]
[1737708350208,8.98125957,264.99,264.94,3.81247877]
[1737708350409,8.98125957,264.99,264.92,0.02866819]
[1737708350610,8.98125957,264.99,264.93,3.81283193]
[1737708350911,8.98125957,264.99,264.94,3.81283193]
[1737708351211,8.98125957,264.99,264.92,0.02866819]
[1737708351412,8.98125957,264.99,264.93,3.81316181]
[1737708351608,8.98125957,264.99,264.94,3.81316181]
[1737708351815,8.98125957,264.99,264.92,0.02866819]
[1737708352710,3.7744,264.95,264.92,0.02866819]
[1737708353011,8.98125957,264.99,264.92,0.02866819]
[1737708353211,3.7746,264.94,264.92,0.02866819]
[1737708353411,8.98125957,264.89,264.87,3.82143958]
[1737708353613,8.98125957,264.89,264.75,100.93354971]
[1737708354010,8.98125957,264.89,264.77,8.98125957]
[1737708354211,3.7757,264.86,264.75,100.93354971]
[1737708354408,0.02691098,264.85,264.8,0.02429799]
[1737708354713,3.7768,264.79,264.69,100.93354971]
[1737708355010,8.98125957,264.79,264.69,100.93354971]
[1737708355410,3.7777,264.72,264.69,100.93354971]
[1737708355810,3.7777,264.72,264.68,100.93354971]
[1737708356010,0.02903157,264.73,264.68,100.95995474]
[1737708356315,0.02903157,264.73,264.68,109.94121431]
[1737708357512,0.02903157,264.73,264.68,100.95995474]
[1737708358107,0.02903157,264.73,264.68,0.02640503]
[1737708358513,0.02903157,264.73,264.7,3.7779]
[1737708360114,0.02903157,264.73,264.68,0.02640503]
[1737708361518,8.98125957,264.86,264.68,9.0076646]
[1737708361716,8.98125957,264.86,264.69,2.4033]
[1737708362217,8.98125957,264.86,264.79,3.7766]
[1737708362614,8.98125957,264.86,264.69,2.4033]
[1737708362815,0.02675614,264.85,264.8,0.02729118]
[1737708364513,8.98125957,264.82,264.8,0.02729118]
[1737708366718,8.98125957,264.82,264.72,3.7777]
[1737708367120,12.75765957,264.82,264.72,3.7777]
[1737708367313,8.98125957,264.82,264.64,12.37055957]
[1737708367518,8.98125957,264.82,264.76,3.777]
[1737708367920,9.0059691,264.82,264.76,3.777]
[1737708368116,9.0059691,264.82,264.76,3.80207206]
[1737708368322,9.0059691,264.82,264.76,0.02507206]
[1737708369122,0.02470953,264.82,264.76,0.02507206]
[1737708369426,8.98125957,264.78,264.76,0.02507206]
[1737708371523,9.0059691,264.82,264.76,0.02507206]
[1737708371723,0.02470953,264.82,264.76,0.02507206]
[1737708371920,0.02470953,264.82,264.78,3.7768]
[1737708372224,0.02470953,264.82,264.76,0.02507206]
[1737708372424,0.02470953,264.82,264.77,3.777]
[1737708372624,0.02470953,264.82,264.76,0.02507206]
[1737708373529,0.02470953,264.82,264.76,3.80207206]
[1737708373929,0.02470953,264.82,264.76,0.02507206]
[1737708374129,0.02470953,264.82,264.77,3.7769]
[1737708374333,0.02470953,264.82,264.76,0.02507206]
[1737708375135,0.02470953,264.82,264.78,3.7767]
[1737708375328,0.02470953,264.82,264.76,0.02507206]
[1737708375833,0.02470953,264.82,264.78,3.7768]
[1737708376431,9.0059691,264.82,264.76,0.02507206]
[1737708378237,3.7767,264.8,264.76,0.02507206]
[1737708378436,8.98125957,264.78,264.62,4.8792]
[1737708378735,8.98125957,264.78,264.6,159.26713622]
[1737708378736,8.98125957,264.74,264.6,100.5966633]
[1737708378927,8.98125957,264.74,264.36,19.65533643]
[1737708378928,11.35,264.6,264.38,94.15707775]
[1737708379228,11.35,264.6,264.26,24.56917053]
[1737708379229,8.98125957,264.36,264.26,24.56917053]
[1737708379630,0.02482999,264.34,264.28,0.02439209]
[1737708379833,8.98125957,264.32,264.28,0.02439209]
[1737708380233,8.98125957,264.32,264.13,4.8038]
[1737708380434,8.98125957,264.25,264.13,4.8038]
[1737708381036,399.50834684,264.31,264.13,13.78505957]
[1737708381536,0.02428311,264.25,264.19,0.02459983]
[1737708382135,358.24018725,264.24,264.19,0.02459983]
[1737708382933,343.35288725,264.24,264.19,0.02459983]
[1737708383835,342.66452694,264.2,264.19,0.02459983]
[1737708384937,342.66452694,264.22,264.19,0.02459983]
[1737708385340,342.66452694,264.22,264.13,4.8038]
[1737708385533,342.66452694,264.22,264.0,14.19113873]
[1737708386035,342.66452694,264.16,264.03,3.7875]
[1737708386235,342.66452694,264.16,263.94,14.19113873]
[1737708386435,342.66452694,264.16,263.99,14.19113873]
[1737708386635,0.02734014,264.12,264.07,0.02484771]
[1737708388440,0.02734014,264.12,264.1,3.7865]
[1737708389538,5.19188677,264.18,264.12,3.7862]
[1737708390140,5.19188677,264.18,264.08,2.4174]
[1737708390840,0.0249607,264.16,264.1,0.02390185]
[1737708391041,0.0249607,264.16,264.08,2.4174]
[1737708391339,17.53643873,264.29,264.15,3.7858]
[1737708391540,17.53643873,264.29,264.08,2.4174]
[1737708391843,3.7843,264.26,264.08,2.4174]
[1737708392238,17.53643873,264.29,264.08,2.4174]
[1737708392440,0.0249817,264.2,264.14,0.02485054]
[1737708393139,14.21612043,264.2,264.14,0.02485054]
[1737708394042,3.7857,264.16,264.14,0.02485054]
[1737708394341,14.21612043,264.2,264.14,0.02485054]
[1737708394545,0.0249817,264.2,264.14,0.02485054]
[1737708395134,0.0249817,264.2,264.18,3.7854]
[1737708395537,0.0249817,264.2,264.14,0.02485054]
[1737708395733,0.0249817,264.2,264.17,3.7855]
[1737708395943,0.0249817,264.2,264.14,0.02485054]
[1737708396142,0.0249817,264.2,264.18,3.7854]
[1737708398343,0.0249817,264.2,264.1,2.4949]
[1737708399144,0.0249817,264.2,264.18,3.7854]
[1737708400948,52.77393071,264.3,264.25,3.7843]
[1737708401144,14.19113873,264.36,264.17,14.19113873]
[1737708401339,3.6177,264.37,264.18,6.0431]
[1737708401643,225.434109,264.31,264.18,6.0431]
[1737708402045,225.434109,264.31,264.26,3.7843]
[1737708402248,0.02714898,264.27,264.26,3.7843]
[1737708404048,0.02714898,264.27,264.22,0.02642437]
[1737708404948,0.02714898,264.27,264.26,3.7843]
[1737708407541,0.02714898,264.27,264.24,3.7844]
[1737708407849,0.02714898,264.27,264.22,0.02642437]
[1737708408247,221.650509,264.31,264.22,0.02642437]
[1737708408742,221.650509,264.31,264.28,3.7839]
[1737708409148,221.650509,264.31,264.22,0.02642437]
[1737708409949,221.650509,264.31,264.3,3.7837]
[1737708410445,198.51760917,264.31,264.3,3.7837]
[1737708410752,166.68220917,264.31,264.3,3.7837]
[1737708411049,126.91010917,264.31,264.3,3.7837]
[1737708411249,108.31830917,264.31,264.3,3.7837]
[1737708411543,29.70869012,264.31,264.3,3.7837]
[1737708411748,29.70869012,264.31,264.29,8.85776309]
[1737708411749,5.19188677,264.39,264.38,3.7826]
[1737708411945,8.677e-05,264.39,264.38,12.64036309]
[1737708412446,8.677e-05,264.43,264.34,8.85776309]
[1737708412750,8.677e-05,264.43,264.31,8.85776309]
[1737708413053,0.02773604,264.41,264.36,0.02575306]
[1737708413855,3.7824,264.39,264.36,0.02575306]
[1737708414446,0.02773604,264.41,264.36,0.02575306]
[1737708415447,0.02773604,264.41,264.22,139.1254391]
[1737708415949,3.4257,264.44,264.22,14.17054327]
[1737708416147,3.7824,264.4,264.22,14.17054327]
[1737708416655,0.02887391,264.34,264.29,3.7837]
[1737708416857,0.02887391,264.34,264.28,0.02789816]
[1737708417055,0.02887391,264.34,264.27,14.17054327]
[1737708417355,0.02887391,264.34,264.33,3.7833]
[1737708419858,7.391e-05,264.34,264.33,3.7833]
[1737708421557,2.6061,264.47,264.45,3.7815]
[1737708422054,3.4241,264.49,264.48,3.7811]
[1737708422957,0.02510044,264.51,264.46,0.02904714]
[1737708422958,0.02510044,264.51,264.5,3.7808]
[1737708423457,4.4e-07,264.51,264.5,3.7808]
[1737708426153,4.4e-07,264.51,264.48,3.781]
[1737708426458,4.4e-07,264.51,264.46,0.02904714]
[1737708426663,3.7809,264.5,264.46,0.02904714]
[1737708427065,10.0347,264.5,264.46,0.02904714]
[1737708427765,6.2538,264.5,264.46,0.02904714]
[1737708427965,6.2538,264.5,264.47,3.7812]
[1737708428465,6.2538,264.5,264.46,0.02904714]
[1737708428864,6.2538,264.5,264.46,3.81034714]
[1737708429164,6.2538,264.5,264.46,0.02904714]
[1737708429364,6.2538,264.5,264.48,3.7811]
[1737708430468,6.2538,264.5,264.47,3.7812]
[1737708430864,6.2538,264.5,264.49,3.781]
[1737708431457,4.4e-07,264.51,264.46,0.02886586]
[1737708431665,4.4e-07,264.51,264.5,3.7808]
[1737708432166,4.4e-07,264.51,264.49,3.7809]
[1737708432968,4.4e-07,264.51,264.5,3.7808]
[1737708439065,4.4e-07,264.51,264.46,0.02886586]
[1737708440371,4.4e-07,264.51,264.38,8.91788511]
[1737708441174,3.78080044,264.51,264.47,3.7812]
[1737708441368,4.4e-07,264.51,264.38,8.91788511]
[1737708441677,3.7813,264.47,264.43,3.7817]
[1737708441873,14.27382359,264.53,264.31,14.27382359]
[1737708442074,3.4835,264.46,264.27,14.27382359]
[1737708442777,0.02496016,264.39,264.27,14.27382359]
[1737708442979,0.02496016,264.39,264.35,3.7829]
[1737708443378,0.02496016,264.39,264.34,0.02742773]
[1737708443578,0.02496016,264.39,264.36,3.7828]
[1737708443877,0.02496016,264.39,264.34,0.02742773]
[1737708444175,0.00069764,264.39,264.37,3.7826]
[1737708447383,0.00069764,264.39,264.38,3.7826]
[1737708448683,2.6083,264.49,264.38,3.7825]
[1737708448876,2.6083,264.49,264.34,14.27382359]
[1737708449283,2.6083,264.49,264.45,3.7815]
[1737708449484,2.6083,264.49,264.29,14.27382359]
[1737708449684,2.4414,264.48,264.29,14.27382359]
[1737708449878,0.0250686,264.42,264.36,0.02702834]
[1737708451186,0.0250686,264.42,264.38,3.7824]
[1737708451379,0.0250686,264.42,264.36,0.02702834]
[1737708452085,6.86e-05,264.42,264.41,3.7821]
[1737708453484,6.86e-05,264.42,264.36,0.02702834]
[1737708453684,6.86e-05,264.42,264.38,3.7824]
[1737708454184,6.86e-05,264.42,264.36,0.02702834]
[1737708455090,6.86e-05,264.42,264.39,3.7823]
[1737708455687,6.86e-05,264.42,264.41,3.7821]
[1737708466193,6.86e-05,264.42,264.36,0.02702834]
[1737708467394,3.7824,264.39,264.36,0.02702834]
[1737708467701,3.4679,264.41,264.25,9.25693041]
[1737708468402,3.7829,264.36,264.31,3.7835]
[1737708468800,0.02827452,264.36,264.31,0.02834532]
[1737708470103,3.783,264.35,264.31,0.02834532]
[1737708470794,0.02827452,264.36,264.31,0.02834532]
[1737708472303,0.02827452,264.36,264.32,3.7833]
[1737708472606,0.02827452,264.36,264.31,0.02834532]
[1737708473403,0.02827452,264.36,264.35,3.783]
[1737708477904,7.452e-05,264.36,264.35,3.783]
[1737708478206,2.78002631,270.63,264.35,3.74]
[1737708478207,6.0327,264.57,264.35,3.74]
[1737708478400,6.0327,264.57,264.45,8.92123041]
[1737708478807,6.0327,264.57,264.4,8.92123041]
[1737708479408,0.02396618,264.51,264.49,3.7809]
[1737708479607,0.02396618,264.51,264.46,0.02410398]
[1737708480108,3.7812,264.48,264.36,8.92123041]
[1737708480804,2.5085,264.5,264.26,0.0389]
[1737708480805,3.7815,264.46,264.32,11.53313041]
[1737708481006,8.92123041,264.47,264.32,11.53313041]
[1737708481307,8.92123041,264.47,264.39,3.7824]
[1737708481308,0.02488166,264.42,264.39,3.7824]
[1737708481510,0.02488166,264.42,264.36,0.02653629]
[1737708482203,0.02488166,264.42,264.4,3.7822]
[1737708482407,0.02488166,264.42,264.36,0.02653629]
[1737708482813,0.02488166,264.42,264.4,3.7822]
[1737708484812,0.02488166,264.42,264.36,0.02653629]
[1737708484813,1956.0,264.41,264.36,0.02653629]
[1737708485013,3.7823,264.4,264.36,0.02653629]
[1737708485208,7.3079,264.4,264.36,0.02653629]
[1737708486417,3.5256,264.4,264.36,0.02653629]
[1737708486716,8.92123041,264.39,264.2,8.92123041]
[1737708486916,11.42243041,264.39,264.2,8.92123041]
[1737708487817,0.02522524,264.35,264.3,3.7837]
[1737708488617,0.02522524,264.35,264.29,0.02588273]
[1737708489820,0.02522524,264.35,264.32,3.7833]
[1737708490422,0.02522524,264.35,264.3,3.7836]
[1737708491623,0.02522524,264.35,264.29,0.02588273]
[1737708492219,0.02522524,264.35,264.33,3.7832]
[1737708492724,0.02522524,264.35,264.29,0.02588273]
[1737708493421,3.7833,264.33,264.29,3.80958273]
[1737708493622,8.94645565,264.35,264.29,0.02588273]
[1737708494022,3.7832,264.34,264.3,3.7837]
[1737708495226,3.7833,264.33,264.29,0.02588273]
[1737708495421,8.94645565,264.35,264.29,0.02588273]
[1737708495724,2.5265,264.34,264.29,0.02588273]
[1737708496318,3.7837,264.31,264.29,0.02588273]
[1737708496516,2.5265,264.34,264.29,0.02588273]
[1737708496718,8.92123041,264.31,264.18,2.3913]
[1737708496927,8.92123041,264.31,264.16,45.03647008]
[1737708498026,3.784,264.28,264.25,0.36229828]
[1737708498720,8.92123041,264.27,264.16,45.03647008]
[1737708499025,3.7848,264.23,264.09,2.4516]
[1737708499420,3.7849,264.22,264.17,3.7855]
[1737708500126,3.80987948,264.22,264.17,3.8134515]
[1737708500719,0.02497948,264.22,264.18,3.7854]
[1737708501327,3.80997948,264.22,264.17,0.0279515]
[1737708501822,0.02497948,264.22,264.17,0.0279515]
[1737708502530,3.7853,264.19,264.17,0.0279515]
[1737708504026,3.7854,264.18,264.17,0.0279515]
[1737708504330,8.92123041,264.19,264.01,2.5461]
[1737708504530,3.7857,264.16,264.11,3.7864]
[1737708504729,8.92123041,264.19,264.01,2.5461]
[1737708505023,8.92123041,264.19,264.04,8.92123041]
[1737708505223,8.92123041,264.19,264.09,0.02752529]
[1737708505430,0.02480842,264.14,264.09,0.02752529]
[1737708506030,0.02480842,264.14,264.13,3.7861]
[1737708506235,0.02480842,264.14,264.09,0.02752529]
[1737708507235,2.43630842,264.14,263.96,8.92123041]
[1737708507434,2.4115,264.14,263.96,8.92123041]
[1737708508230,2.4115,264.14,264.02,0.02616962]
[1737708508435,0.02513509,264.08,264.07,3.787]
[1737708511339,3.509e-05,264.08,264.07,3.787]
[1737708520644,880.61232981,264.08,264.05,3.81628915]
[1737708520848,3.509e-05,264.08,264.05,3.81628915]
[1737708521048,3.509e-05,264.08,264.05,0.02908915]
[1737708521251,3.509e-05,264.08,263.92,5.2442]
[1737708521252,8.92123041,264.07,263.92,8.92123041]
[1737708521643,12.70833041,264.07,263.92,8.92123041]
[1737708522343,0.02476891,264.02,263.97,0.02426213]
[1737708523353,8.92123041,264.0,263.84,124.95489583]
[1737708523653,8.92123041,263.94,263.84,124.95489583]
[1737708523848,8.92123041,263.89,263.78,124.95489583]
[1737708524552,0.0275478,263.87,263.81,0.02750208]
[1737708524751,0.0275478,263.87,263.83,3.7904]
[1737708524958,0.0275478,263.87,263.81,0.02750208]
[1737708525252,8.92123041,263.85,263.81,0.02750208]
[1737708526246,8.92123041,263.85,263.78,124.95489583]
[1737708526453,8.92123041,263.8,263.78,87.33539583]
[1737708526654,8.92123041,263.85,263.78,87.33539583]
[1737708527153,8.92123041,263.81,263.78,87.33539583]
[1737708527450,8.92123041,263.81,263.79,0.02402197]
[1737708527844,12.71203041,263.81,263.77,0.02780804]
[1737708528755,0.02449404,263.83,263.77,0.02780804]
[1737708529255,0.02449404,263.83,263.81,3.7907]
[1737708530156,8.92123041,263.93,263.86,3.7899]
[1737708530352,8.92123041,263.93,263.78,9.3157]
[1737708530552,8.92123041,263.89,263.73,8.92123041]
[1737708530851,8.92123041,263.89,263.74,9.4495]
[1737708531251,8.92123041,263.89,263.79,0.02669358]
[1737708531456,0.02823597,263.84,263.79,0.02669358]
[1737708532157,0.02823597,263.84,263.83,3.7904]
[1737708533054,0.02823597,263.84,263.79,0.02669358]
[1737708533251,8.92123041,263.8,263.79,0.02669358]
[1737708533757,8.92123041,263.8,263.79,3.81769358]
[1737708533949,0.02823597,263.84,263.79,3.81769358]
[1737708533950,8.94946638,263.84,263.79,0.02669358]
[1737708534953,0.02823597,263.84,263.82,3.7905]
[1737708536760,3.7887,263.95,263.89,3.7894]
[1737708536953,2.6582,263.99,263.85,8.92123041]
[1737708537562,3.7885,263.97,263.85,8.92123041]
[1737708537856,0.02430054,263.95,263.93,3.789]
[1737708539063,0.02430054,263.95,263.89,0.02523797]
[1737708539756,3.81300054,263.95,263.9,3.7894]
[1737708539960,0.02430054,263.95,263.9,3.7894]
[1737708540265,3.7892,263.92,263.89,0.02523797]
[1737708540451,8.92123041,263.94,263.89,0.02523797]
[1737708540959,3.7894,263.9,263.89,0.02523797]
[1737708541354,0.02430054,263.95,263.89,0.02523797]
[1737708541561,3.7891,263.93,263.89,3.81483797]
[1737708541754,0.02430054,263.95,263.89,0.02523797]
[1737708542359,0.02430054,263.95,263.9,3.7894]
[1737708543164,0.02430054,263.95,263.92,3.7891]
[1737708543663,0.02430054,263.95,263.89,0.02523797]
[1737708543858,8.92123041,264.07,263.89,8.94646838]
[1737708544057,8.92123041,264.07,263.89,8.92123041]
[1737708544260,8.92123041,264.07,263.9,2.4396]
[1737708544566,3.7874,264.04,263.9,2.4396]
[1737708544860,3.7874,264.04,263.91,4.2713]
[1737708545057,0.02768335,264.0,263.94,0.02735949]
[1737708547361,0.02768335,264.0,263.98,3.7883]
[1737708547563,8.92123041,264.15,263.97,8.92123041]
[1737708547767,5.0048,264.2,263.97,14.30978543]
[1737708547768,4.3337,264.19,263.97,14.30978543]
[1737708547968,3.7863,264.12,264.07,3.787]
[1737708548169,4.3337,264.19,264.02,14.30978543]
[1737708548567,4.3337,264.19,263.71,303.3763]
[1737708548568,14.30978543,264.14,263.91,14.30978543]
[1737708548769,0.02632968,264.13,264.08,0.02605418]
[1737708548969,14.30978543,264.14,263.92,2.5254]
[1737708549164,0.02466878,264.13,264.0,3.7879]
[1737708549373,0.02562546,264.06,264.0,0.02656622]
[1737708549564,0.02562546,264.06,264.04,3.7874]
[1737708549769,18.64348543,264.19,264.0,0.02656622]
[1737708549966,4.3337,264.19,264.01,14.30978543]
[1737708550372,3.7855,264.18,264.01,14.30978543]
[1737708550865,0.02576509,264.12,264.07,0.02840153]
[1737708552173,3.7867,264.09,264.07,0.02840153]
[1737708553471,0.02576509,264.12,264.07,0.02840153]
[1737708553671,3.81216509,264.12,264.07,0.02840153]
[1737708554675,0.02576509,264.12,264.07,0.02840153]
[1737708554875,3.7864,264.11,264.07,0.02840153]
[1737708555370,0.02576509,264.12,264.07,0.02840153]
[1737708555572,3.7868,264.09,264.07,0.02840153]
[1737708556273,0.02576509,264.12,264.07,0.02840153]
[1737708556478,3.7869,264.08,264.07,0.02840153]
[1737708560580,14.33555052,264.12,264.07,0.02840153]
[1737708560581,0.02576509,264.12,264.07,0.02840153]
[1737708561578,0.02576509,264.12,264.1,3.7865]
[1737708562875,3.81206509,264.12,264.07,0.02840153]
[1737708563277,0.02576509,264.12,264.07,0.02840153]
[1737708565183,3.7866,264.1,264.07,0.02840153]
[1737708567282,3.7869,264.08,264.07,0.02840153]
[1737708569688,12.73626598,264.08,264.07,0.02840153]
[1737708571984,3.7866,264.1,264.07,0.02840153]
[1737708572587,0.02576509,264.12,264.07,3.81540153]
[1737708572588,3.7864,264.11,264.07,3.81540153]
[1737708572788,0.02576509,264.12,264.07,0.02840153]
[1737708574190,3.81206509,264.12,264.09,3.7867]
[1737708574498,3.81206509,264.12,264.07,0.02840153]
[1737708574991,0.02576509,264.12,264.09,3.7867]
[1737708575192,0.02576509,264.12,264.07,0.02840153]
[1737708575591,0.02576509,264.12,264.1,3.7866]
[1737708577391,8.94936598,264.2,264.07,8.97776751]
[1737708577592,3.785,264.21,264.08,6.8185]
[1737708577791,8.94936598,264.24,264.08,6.8185]
[1737708578290,12.73396598,264.24,264.18,3.7853]
[1737708578492,38.04057508,264.29,264.13,0.02623527]
[1737708578493,0.02719679,264.19,264.13,0.02623527]
[1737708578692,0.02719679,264.19,264.11,8.94936598]
[1737708578890,0.02719679,264.19,264.13,0.02822301]
[1737708579397,3.7855,264.18,264.13,0.02822301]
[1737708579591,0.02719679,264.19,264.13,0.02822301]
[1737708580388,3.786,264.14,264.09,3.7866]
[1737708581695,3.786,264.14,264.09,3.81268756]
[1737708582995,12.73566598,264.12,264.09,0.02608756]
[1737708583193,8.94936598,264.12,264.09,0.02608756]
[1737708584193,3.7865,264.11,264.09,0.02608756]
[1737708589401,3.7866,264.1,264.09,0.02608756]
[1737708593205,8.94936598,264.12,263.99,3.01148755]
[1737708593410,3.7877,264.02,263.91,9.3397]
[1737708593711,8.94936598,264.07,263.97,3.7883]
[1737708594205,8.94936598,264.07,263.91,9.3397]
[1737708594405,8.94936598,264.03,263.99,0.0246285]
[1737708594916,3.788,264.0,263.99,0.0246285]
[1737708601016,3.788,264.0,263.91,9.3397]
[1737708601017,3.7886,263.96,263.91,6.4438]
[1737708601812,12.73776598,263.97,263.92,3.7891]
[1737708602009,12.73776598,263.97,263.91,2.6546]
[1737708602010,8.94936598,264.01,263.91,2.6546]
[1737708602205,0.02591937,263.97,263.91,2.68125954]
[1737708602512,3.7876,264.04,263.91,2.6546]
[1737708602712,0.02404697,263.97,263.91,2.68128845]
[1737708603813,0.02404697,263.97,263.96,3.7886]
[1737708604109,0.02404697,263.97,263.91,2.68128845]
[1737708604313,0.02404697,263.97,263.94,3.7887]
[1737708604507,0.02404697,263.97,263.91,2.68128845]
[1737708605007,3.81244697,263.97,263.91,2.68128845]
[1737708605204,0.02404697,263.97,263.91,2.68128845]
[1737708606414,0.02404697,263.97,263.96,3.7886]
[1737708609614,0.02404697,263.97,263.91,2.68128845]
[1737708609615,0.02404697,263.97,263.95,3.7887]
[1737708609915,0.02404697,263.97,263.91,2.68128845]
[1737708610114,0.02404697,263.97,263.96,3.7886]
[1737708610311,8.94936598,264.09,263.96,8.94936598]
[1737708610611,8.94936598,264.13,264.06,3.787]
[1737708611316,8.94936598,264.21,264.04,8.94936598]
[1737708611516,0.02740952,264.12,264.07,0.0242576]
[1737708611713,8.94936598,264.21,264.07,0.0242576]
[1737708611915,3.7852,264.2,264.15,3.7858]
[1737708612417,8.94936598,264.21,264.05,2.5856]
[1737708612815,0.02782166,264.16,264.1,0.02698172]
[1737708613614,0.02782166,264.16,264.15,3.7857]
[1737708614916,0.02782166,264.16,264.13,3.786]
[1737708616214,0.02782166,264.16,264.1,0.02698172]
[1737708618820,0.02782166,264.16,264.14,3.786]
[1737708619220,0.02782166,264.16,264.1,0.02698172]
[1737708619423,0.02782166,264.16,264.15,3.7859]
[1737708620421,0.02782166,264.16,264.1,0.02698172]
[1737708620921,0.02782166,264.16,264.12,3.7862]
[1737708621124,0.02782166,264.16,264.1,0.02698172]
[1737708621624,0.02782166,264.16,264.15,3.7858]
[1737708622023,8.94936598,264.25,264.1,8.9763477]
[1737708622226,3.7848,264.23,264.18,3.7853]
[1737708623026,8.94936598,264.25,264.2,3.7851]
[1737708623320,0.02868824,264.23,264.2,3.7851]
[1737708623826,0.02868824,264.23,264.22,3.7848]
[1737708624325,8.94936598,264.33,264.26,3.7843]
[1737708624525,8.94936598,264.33,264.14,8.94936598]
[1737708624721,8.94936598,264.33,264.18,8.94936598]
[1737708624928,8.94936598,264.33,264.19,5.1824]
[1737708625427,0.02817958,264.29,264.26,3.7842]
[1737708625627,0.02817958,264.29,264.23,0.02812929]
[1737708626027,8.97754556,264.29,264.23,0.02812929]
[1737708626526,3.7846,264.24,264.23,0.02812929]
[1737708628728,3.7849,264.22,264.17,3.7855]
[1737708628929,8.94936598,264.25,264.1,5.2142]
[1737708629329,8.94936598,264.21,264.1,5.2142]
[1737708629535,8.94936598,264.21,264.12,3.7862]
[1737708629830,3.7855,264.18,264.14,0.02539231]
[1737708630829,0.02500045,264.19,264.14,0.02539231]
[1737708631226,0.02500045,264.19,264.15,3.7858]
[1737708631531,0.02500045,264.19,264.14,0.02539231]
[1737708632130,3.81030045,264.19,264.15,3.7858]
[1737708632731,0.02500045,264.19,264.14,0.02539231]
[1737708633431,0.02500045,264.19,264.17,3.7856]
[1737708634131,0.02500045,264.19,264.14,0.02539231]
[1737708634730,3.7856,264.17,264.14,3.81139231]
[1737708636133,3.7856,264.17,264.14,0.02539231]
[1737708636832,3.7854,264.18,264.14,3.81139231]
[1737708637834,0.02500045,264.19,264.15,3.7858]
[1737708638034,0.02500045,264.19,264.14,0.02539231]
[1737708638231,3.7858,264.15,264.14,0.02539231]
[1737708641335,3.7865,264.11,264.02,4.9268]
[1737708641839,8.94936598,264.17,264.07,3.787]
[1737708642029,3.786,264.14,264.02,4.9268]
[1737708642532,0.02853144,264.11,264.05,0.02809007]
[1737708643438,0.02853144,264.11,264.08,3.7867]
[1737708646441,0.02853144,264.11,264.09,3.7867]
[1737708646843,0.02853144,264.11,264.05,0.02809007]
[1737708647038,0.02853144,264.11,264.1,3.7866]
[1737708651441,8.94936598,264.22,264.06,8.94936598]
[1737708651642,3.7851,264.21,264.16,3.7856]
[1737708651841,8.94936598,264.22,264.06,8.94936598]
[1737708652043,8.94936598,264.22,264.1,3.7864]
[1737708652242,3.7854,264.18,264.06,8.94936598]
[1737708652544,0.0273392,264.15,264.1,3.7864]
[1737708652741,0.0273392,264.15,264.09,0.02718301]
[1737708653434,0.0273392,264.15,264.14,3.786]
[1737708655244,3.8132392,264.15,264.1,3.7864]
[1737708655443,0.0273392,264.15,264.09,0.02718301]
[1737708656146,3.8133392,264.15,264.11,3.7864]
[1737708658043,3.7861,264.13,264.09,3.81388301]
[1737708659248,3.7864,264.12,264.09,0.02718301]
[1737708659451,8.94936598,264.14,264.09,0.02718301]
[1737708659938,3.7866,264.1,264.09,0.02718301]
[1737708660343,8.94936598,264.14,263.98,8.94936598]
[1737708660539,8.94936598,264.1,263.94,14.06156598]
[1737708661648,0.02887272,264.07,264.02,0.02782577]
[1737708662644,3.81597272,264.07,264.02,3.81542577]
[1737708664945,3.7872,264.06,264.02,3.81542577]
[1737708665642,3.7876,264.03,264.02,0.02782577]
[1737708667254,8.94936598,264.06,264.02,0.02782577]
[1737708669549,3.7876,264.04,264.02,0.02782577]
[1737708669752,8.94936598,264.06,264.02,0.02782577]
[1737708670152,3.7876,264.03,264.02,0.02782577]
[1737708673254,8.94936598,264.06,264.02,0.02782577]
[1737708673455,3.7874,264.04,264.02,0.02782577]
[1737708675047,3.7876,264.03,264.02,0.02782577]
[1737708677958,8.94936598,264.06,264.02,0.02782577]
[1737708678154,3.7874,264.04,264.02,0.02782577]
[1737708679361,8.94936598,264.06,264.02,0.02782577]
[1737708679562,3.7876,264.03,264.02,0.02782577]
[1737708680866,0.02887272,264.07,264.02,0.02782577]
[1737708681466,3.7858,264.16,264.06,3.7871]
[1737708681763,8.94936598,264.23,264.06,8.94936598]
[1737708681963,8.94936598,264.23,264.07,6.4167]
[1737708682165,8.94936598,264.27,264.1,8.94936598]
[1737708682361,8.94936598,264.27,264.11,2.6408]